fUST/lending_fUST_20250114
["ID","MTS","AMOUNT","RATE_DAILY","PERIOD"]
[348894961,1736863840868,-603.83,0.00021917,3]
[348894962,1736863840878,-500.0,0.00021917,3]
[348894963,1736863840887,-603.83,0.00021917,3]
[348894964,1736863840897,-572.39245361,0.00021917,3]
[348894965,1736863840907,-603.89,0.00021917,3]
[348894966,1736863840916,-500.0,0.00021917,3]
[348894967,1736863840926,-505.26,0.00021917,3]
[348894968,1736863840935,-500.0,0.00021917,3]
[348894969,1736863840945,-500.0,0.00021917,3]
[348894970,1736863840954,-500.5226267,0.00021917,3]
[348894971,1736863840963,-500.0,0.00021917,3]
[348894972,1736863840973,-500.0,0.00021917,3]
[348894973,1736863840982,-500.0,0.00021917,3]
[348894974,1736863840991,-2086.44,0.00021917,3]
[348894975,1736863841001,-158.339815,0.00021917,2]
[348894976,1736863841011,-500.0,0.00021917,3]
[348894977,1736863841020,-500.0,0.00021917,3]
[348894978,1736863841030,-500.0,0.00021917,3]
[348894979,1736863841041,-4296.9,0.00021917,3]
[348894980,1736863841051,-500.0,0.00021917,3]
[348894981,1736863841061,-500.0,0.00021917,3]
[348894982,1736863841071,-500.0,0.00021917,3]
[348894983,1736863841080,-500.0,0.00021917,3]
[348894984,1736863841090,-500.0,0.00021917,3]
[348894985,1736863841100,-500.0,0.00021917,3]
[348894986,1736863841109,-500.0,0.00021917,3]
[348894987,1736863841119,-151.0,0.00021917,2]
[348894988,1736863841128,-151.0,0.00021917,2]
[348894989,1736863841138,-501.80045262,0.00021917,3]
[348894990,1736863841148,-500.0,0.00021917,3]
[348894991,1736863841158,-151.0,0.00021917,2]
[348894992,1736863841168,-151.0,0.00021917,2]
[348894993,1736863841177,-877.71,0.00021917,3]
[348894994,1736863841187,-151.0,0.00021917,2]
[348894995,1736863841197,-492.33506193,0.00021917,3]
[348894996,1736863841207,-151.0,0.00021917,2]
[348894997,1736863841216,-169.754806,0.00021917,2]
[348894998,1736863841226,-500.0,0.00021917,3]
[348894999,1736863841235,-861.39,0.00021917,3]
[348895000,1736863841245,-577.59,0.00021917,3]
[348895001,1736863841255,-151.0,0.00021917,2]
[348895002,1736863841264,-502.04689333,0.00021917,3]
[348895003,1736863841274,-151.0,0.00021917,2]
[348895004,1736863841283,-500.0,0.00021917,3]
[348895005,1736863841295,-151.0,0.00021917,2]
[348895006,1736863841304,-247.81097,0.00021917,2]
[348895007,1736863841318,-2059.6,0.00021917,3]
[348895008,1736863841327,-500.0,0.00021917,3]
[348895009,1736863841337,-500.54889533,0.00021917,3]
[348895010,1736863841346,-500.0,0.00021917,3]
[348895011,1736863841357,-336.3144288,0.00021917,3]
[348895012,1736863841366,-500.0,0.00021917,3]
[348895013,1736863841376,-500.0,0.00021917,3]
[348895014,1736863841386,-500.0,0.00021917,3]
[348895015,1736863841396,-500.0,0.00021917,3]
[348895016,1736863841405,-503.44,0.00021917,3]
[348895017,1736863841414,-500.0,0.00021917,3]
[348895018,1736863841424,-4048.51,0.00021917,3]
[348895019,1736863841433,-484.01917662,0.00021917,3]
[348895020,1736863841443,-500.0,0.00021917,3]
[348895021,1736863841452,-503.80901098,0.00021917,3]
[348895022,1736863841461,-500.0,0.00021917,3]
[348895023,1736863841470,-500.0,0.00021917,3]
[348895024,1736863841480,-500.0,0.00021917,3]
[348895025,1736863841489,-500.0,0.00021917,3]
[348895026,1736863841498,-9527.68080375,0.00021917,3]
[348895073,1736863844119,-1414.767616,0.00021698,2]
[348895074,1736863844129,-526.14919625,0.00021917,3]
[348895075,1736863844139,-500.0,0.00021917,3]
[348895076,1736863844149,-1704.95,0.00021917,3]
[348895077,1736863844158,-500.0,0.00021917,3]
[348895078,1736863844168,-500.0,0.00021917,3]
[348895079,1736863844177,-500.0,0.00021917,3]
[348895080,1736863844187,-589.92065905,0.00021917,3]
[348895081,1736863844196,-500.0,0.00021917,3]
[348895082,1736863844205,-500.0,0.00021917,3]
[348895083,1736863844214,-626.0837628,0.00021917,3]
[348895084,1736863844224,-1016.39,0.00021917,3]
[348895086,1736863844261,-500.0,0.00021917,3]
[348895087,1736863844271,-232.82306357,0.00021917,3]
[348895088,1736863844280,-2597.05,0.00021917,3]
[348895089,1736863844292,-1738.98,0.00021917,3]
[348895090,1736863844301,-1849.84,0.00021917,3]
[348895091,1736863844310,-151.0,0.00021917,2]
[348895092,1736863844323,-500.0,0.00021917,3]
[348895093,1736863844332,-699.13,0.00021917,3]
[348895094,1736863844342,-151.0,0.00021917,2]
[348895095,1736863844351,-151.0,0.00021917,2]
[348895096,1736863844360,-151.0,0.00021917,2]
[348895097,1736863844369,-500.0,0.00021917,3]
[348895098,1736863844379,-151.0,0.00021917,2]
[348895099,1736863844388,-159.767616,0.00021917,2]
[348895101,1736863844397,-500.0,0.00021917,3]
[348895103,1736863844407,-500.0,0.00021917,2]
[348895105,1736863844416,-500.0,0.00021917,3]
[348895107,1736863844425,-500.0,0.00021917,3]
[348895108,1736863844434,-957.42317623,0.00021934,2]
[348895111,1736863844444,-3000.0,0.00021954,2]
[348895113,1736863844454,-420.0583734,0.00021954,2]
[348895115,1736863844463,-500.0,0.00021973,2]
[348895117,1736863844473,-500.0,0.00021973,2]
[348895119,1736863844482,-268.74929908,0.00021973,2]
[348895121,1736863844492,-178.29593082,0.00021973,2]
[348895122,1736863844501,-268.8436796,0.00021973,2]
[348895125,1736863844511,-4018.6,0.00022,3]
[348895127,1736863844524,-151.0,0.00022,5]
[348895129,1736863844533,-151.0,0.00022,4]
[348895131,1736863844545,-151.0,0.00022,3]
[348895133,1736863844555,-600.0,0.00022,3]
[348895135,1736863844565,-70106.79831195,0.00022,2]
[348895137,1736863844575,-150.559,0.00022014,2]
[348895139,1736863844584,-2076.0,0.00022014,2]
[348895141,1736863844593,-536.849,0.00022014,2]
[348895143,1736863844602,-2319.0,0.00022014,2]
[348895145,1736863844611,-957.42317623,0.00022038,2]
[348895147,1736863844621,-160.55810013,0.00022053,2]
[348895149,1736863844630,-151.67,0.00022054,2]
[348895151,1736863844639,-618.957452,0.00022054,7]
[348895153,1736863844648,-618.957452,0.00022054,7]
[348895155,1736863844658,-618.957452,0.00022054,7]
[348895157,1736863844667,-618.957452,0.00022054,7]
[348895159,1736863844676,-618.957452,0.00022054,7]
[348895161,1736863844685,-618.957452,0.00022054,7]
[348895163,1736863844695,-618.957452,0.00022054,7]
[348895165,1736863844706,-618.957452,0.00022054,7]
[348895167,1736863844716,-618.957452,0.00022054,7]
[348895169,1736863844726,-618.957452,0.00022054,7]
[348895171,1736863844735,-618.957452,0.00022054,7]
[348895173,1736863844745,-618.957452,0.00022054,7]
[348895175,1736863844754,-618.957454,0.00022054,7]
[348895177,1736863844764,-500.0,0.00022054,3]
[348895179,1736863844775,-500.0,0.00022054,3]
[348895180,1736863844784,-500.0,0.00022054,3]
[348895181,1736863844795,-500.0,0.00022054,3]
[348895182,1736863844804,-162.71253028,0.00022054,3]
[348895183,1736863844813,-500.0,0.00022054,3]
[348895185,1736863844822,-10661.45,0.00022054,3]
[348895187,1736863844831,-500.0,0.00022054,3]
[348895188,1736863844840,-500.0,0.00022054,3]
[348895189,1736863844850,-624.24,0.00022054,3]
[348895190,1736863844859,-500.0,0.00022054,3]
[348895191,1736863844869,-500.0,0.00022054,3]
[348895192,1736863844878,-500.0,0.00022054,3]
[348895193,1736863844888,-500.0,0.00022054,3]
[348895194,1736863844897,-500.0,0.00022054,3]
[348895195,1736863844907,-500.0,0.00022054,3]
[348895196,1736863844916,-500.0,0.00022054,3]
[348895197,1736863844926,-500.0,0.00022054,3]
[348895198,1736863844935,-505.38414201,0.00022054,3]
[348895199,1736863844944,-500.0,0.00022054,3]
[348895200,1736863844953,-518.57663491,0.00022054,3]
[348895201,1736863844963,-555.47,0.00022054,3]
[348895202,1736863844972,-500.0,0.00022054,3]
[348895203,1736863844981,-500.0,0.00022054,3]
[348895204,1736863844991,-500.0,0.00022054,3]
[348895205,1736863845000,-500.0,0.00022054,3]
[348895206,1736863845009,-500.0,0.00022054,3]
[348895207,1736863845019,-500.0,0.00022054,3]
[348895208,1736863845028,-500.0,0.00022054,3]
[348895209,1736863845037,-500.0,0.00022054,3]
[348895210,1736863845048,-648.6,0.00022054,3]
[348895211,1736863845058,-976.54,0.00022054,3]
[348895212,1736863845067,-500.0,0.00022054,3]
[348895213,1736863845076,-500.0,0.00022054,3]
[348895214,1736863845086,-800.75,0.00022054,3]
[348895215,1736863845095,-500.0,0.00022054,3]
[348895216,1736863845104,-277.18196162,0.00022054,3]
[348895217,1736863845114,-500.0,0.00022054,3]
[348895218,1736863845123,-500.0,0.00022054,3]
[348895219,1736863845132,-602.56,0.00022054,3]
[348895220,1736863845141,-500.0,0.00022054,3]
[348895221,1736863845151,-500.0,0.00022054,3]
[348895222,1736863845160,-500.0,0.00022054,3]
[348895223,1736863845169,-666.37,0.00022054,3]
[348895224,1736863845179,-1167.65,0.00022054,3]
[348895225,1736863845188,-206.78421296,0.00022054,3]
[348895226,1736863845197,-500.0,0.00022054,3]
[348895227,1736863845206,-905.35,0.00022054,3]
[348895228,1736863845215,-500.0,0.00022054,3]
[348895229,1736863845225,-500.0,0.00022054,3]
[348895230,1736863845234,-500.0,0.00022054,3]
[348895231,1736863845243,-1155.85,0.00022054,3]
[348895232,1736863845252,-500.0,0.00022054,3]
[348895233,1736863845262,-500.0,0.00022054,3]
[348895234,1736863845271,-862.62,0.00022054,3]
[348895235,1736863845280,-500.0,0.00022054,3]
[348895236,1736863845291,-798.75,0.00022054,3]
[348895237,1736863845300,-500.0,0.00022054,3]
[348895238,1736863845310,-1111.58,0.00022054,3]
[348895239,1736863845320,-500.0,0.00022054,3]
[348895240,1736863845332,-500.0,0.00022054,3]
[348895241,1736863845341,-500.0,0.00022054,3]
[348895242,1736863845350,-938.24,0.00022054,3]
[348895243,1736863845360,-500.0,0.00022054,3]
[348895244,1736863845369,-500.0,0.00022054,3]
[348895245,1736863845378,-501.06,0.00022054,3]
[348895246,1736863845387,-500.0,0.00022054,3]
[348895247,1736863845400,-500.0,0.00022054,3]
[348895248,1736863845410,-500.0,0.00022054,3]
[348895249,1736863845420,-500.0,0.00022054,3]
[348895250,1736863845429,-500.0,0.00022054,3]
[348895251,1736863845439,-612.28,0.00022054,3]
[348895252,1736863845449,-683.74,0.00022054,3]
[348895253,1736863845458,-500.0,0.00022054,3]
[348895254,1736863845468,-500.0,0.00022054,3]
[348895255,1736863845478,-500.0,0.00022054,3]
[348895256,1736863845488,-849.75,0.00022054,3]
[348895257,1736863845497,-639.85,0.00022054,3]
[348895258,1736863845507,-848.14,0.00022054,3]
[348895259,1736863845517,-646.88,0.00022054,3]
[348895260,1736863845528,-500.0,0.00022054,3]
[348895261,1736863845538,-500.0,0.00022054,3]
[348895262,1736863845549,-500.0,0.00022054,3]
[348895264,1736863845558,-500.0,0.00022054,3]
[348895265,1736863845568,-500.0,0.00022054,3]
[348895266,1736863845578,-765.36,0.00022054,3]
[348895268,1736863845588,-888.92,0.00022054,3]
[348895269,1736863845597,-500.0,0.00022054,3]
[348895270,1736863845607,-500.0,0.00022054,3]
[348895271,1736863845617,-2567.75,0.00022054,3]
[348895272,1736863845627,-500.0,0.00022054,3]
[348895273,1736863845637,-500.0,0.00022054,3]
[348895274,1736863845647,-500.0,0.00022054,3]
[348895275,1736863845657,-500.0,0.00022054,3]
[348895276,1736863845667,-568.24179305,0.00022054,3]
[348895277,1736863845677,-500.0,0.00022054,3]
[348895278,1736863845687,-500.0,0.00022054,3]
[348895279,1736863845697,-500.0,0.00022054,3]
[348895280,1736863845707,-629.41,0.00022054,3]
[348895282,1736863845718,-500.0,0.00022054,3]
[348895284,1736863845728,-500.0,0.00022054,3]
[348895286,1736863845739,-500.0,0.00022054,3]
[348895288,1736863845749,-1413.47,0.00022054,3]
[348895290,1736863845759,-500.0,0.00022054,3]
[348895292,1736863845769,-584.19,0.00022054,3]
[348895294,1736863845779,-500.0,0.00022054,3]
[348895296,1736863845788,-1126.87,0.00022054,3]
[348895298,1736863845798,-500.0,0.00022054,3]
[348895300,1736863845808,-500.0,0.00022054,3]
[348895302,1736863845818,-505.27,0.00022054,3]
[348895304,1736863845828,-500.0,0.00022054,3]
[348895306,1736863845838,-500.0,0.00022054,3]
[348895307,1736863845849,-616.16,0.00022054,3]
[348895308,1736863845859,-1118.88,0.00022054,3]
[348895311,1736863845869,-783.08,0.00022054,3]
[348895314,1736863845881,-500.0,0.00022054,3]
[348895317,1736863845891,-500.0,0.00022054,3]
[348895320,1736863845903,-605.0,0.00022054,3]
[348895322,1736863845914,-1009.28,0.00022054,3]
[348895324,1736863845924,-500.0,0.00022054,3]
[348895326,1736863845935,-6485.76,0.00022054,3]
[348895328,1736863845946,-500.0,0.00022054,3]
[348895331,1736863845956,-1690.57,0.00022054,3]
[348895333,1736863845967,-740.18,0.00022054,3]
[348895335,1736863845977,-500.0,0.00022054,3]
[348895337,1736863845987,-500.0,0.00022054,3]
[348895339,1736863845997,-500.0,0.00022054,3]
[348895341,1736863846007,-500.0,0.00022054,3]
[348895343,1736863846017,-512.12,0.00022054,3]
[348895345,1736863846027,-500.0,0.00022054,3]
[348895347,1736863846037,-1010.0,0.00022054,3]
[348895349,1736863846049,-500.0,0.00022054,3]
[348895351,1736863846059,-500.0,0.00022054,3]
[348895353,1736863846069,-500.0,0.00022054,3]
[348895355,1736863846079,-1299.63,0.00022054,3]
[348895358,1736863846088,-500.0,0.00022054,3]
[348895361,1736863846098,-3768.06,0.00022054,3]
[348895363,1736863846108,-500.0,0.00022054,3]
[348895366,1736863846119,-500.0,0.00022054,3]
[348895369,1736863846128,-1342.06,0.00022054,3]
[348895372,1736863846138,-1128.92,0.00022054,3]
[348895375,1736863846148,-500.0,0.00022054,3]
[348895378,1736863846158,-27073.49,0.00022054,2]
[348895381,1736863846168,-426.31615414,0.00022054,3]
[348895383,1736863846179,-500.0,0.00022054,3]
[348895386,1736863846190,-500.0,0.00022054,3]
[348895389,1736863846199,-500.0,0.00022054,3]
[348895392,1736863846209,-692.16,0.00022054,3]
[348895395,1736863846219,-500.0,0.00022054,3]
[348895398,1736863846229,-556.21,0.00022054,3]
[348895400,1736863846239,-500.0,0.00022054,3]
[348895402,1736863846249,-43318.87,0.00022054,3]
[348895404,1736863846259,-524.51,0.00022054,3]
[348895405,1736863846269,-5131.51,0.00022054,2]
[348895407,1736863846279,-1130.32,0.00022054,3]
[348895409,1736863846290,-181.91634277,0.00022054,3]
[348895411,1736863846300,-1994.39,0.00022054,3]
[348895413,1736863846311,-6448.84,0.00022054,3]
[348895415,1736863846323,-500.0,0.00022054,3]
[348895417,1736863846333,-677.78,0.00022054,3]
[348895419,1736863846342,-1029.24,0.00022054,3]
[348895420,1736863846352,-500.0,0.00022054,3]
[348895422,1736863846362,-4537.12,0.00022054,3]
[348895424,1736863846372,-500.0,0.00022054,3]
[348895426,1736863846383,-2401.3,0.00022054,3]
[348895428,1736863846393,-584.62,0.00022054,3]
[348895430,1736863846402,-537.48979238,0.00022054,3]
[348895432,1736863846412,-500.0,0.00022054,3]
[348895433,1736863846421,-1523.5,0.00022054,3]
[348895435,1736863846431,-590.75,0.00022054,3]
[348895437,1736863846440,-500.0,0.00022054,3]
[348895439,1736863846450,-2305.5,0.00022054,3]
[348895441,1736863846460,-500.0,0.00022054,3]
[348895443,1736863846470,-500.0,0.00022054,3]
[348895445,1736863846479,-603.8,0.00022054,3]
[348895447,1736863846489,-697.89,0.00022054,3]
[348895448,1736863846498,-1865.8,0.00022054,3]
[348895450,1736863846508,-621.15,0.00022054,3]
[348895452,1736863846518,-500.0,0.00022054,3]
[348895454,1736863846528,-500.0,0.00022054,3]
[348895456,1736863846538,-501.99,0.00022054,3]
[348895458,1736863846548,-500.0,0.00022054,3]
[348895460,1736863846558,-500.0,0.00022054,3]
[348895462,1736863846568,-505.26,0.00022054,3]
[348895464,1736863846577,-2086.44,0.00022054,3]
[348895466,1736863846587,-4296.9,0.00022054,3]
[348895467,1736863846596,-500.0,0.00022054,3]
[348895469,1736863846606,-500.0,0.00022054,3]
[348895471,1736863846616,-500.0,0.00022054,3]
[348895473,1736863846626,-500.0,0.00022054,3]
[348895475,1736863846636,-500.0,0.00022054,3]
[348895477,1736863846646,-877.71,0.00022054,3]
[348895479,1736863846656,-500.0,0.00022054,3]
[348895481,1736863846665,-577.59,0.00022054,3]
[348895483,1736863846674,-861.39,0.00022054,3]
[348895484,1736863846684,-2059.6,0.00022054,3]
[348895486,1736863846694,-500.0,0.00022054,3]
[348895488,1736863846703,-509.22086434,0.00022054,3]
[348895490,1736863846713,-500.0,0.00022054,3]
[348895492,1736863846723,-503.44,0.00022054,3]
[348895494,1736863846732,-4048.51,0.00022054,3]
[348895496,1736863846743,-500.0,0.00022054,3]
[348895498,1736863846755,-500.0,0.00022054,3]
[348895500,1736863846765,-10053.83,0.00022054,3]
[348895501,1736863846774,-500.0,0.00022054,3]
[348895503,1736863846784,-1704.95,0.00022054,3]
[348895505,1736863846796,-500.0,0.00022054,3]
[348895507,1736863846806,-1016.39,0.00022054,3]
[348895509,1736863846816,-2597.05,0.00022054,3]
[348895511,1736863846826,-1849.84,0.00022054,3]
[348895513,1736863846836,-1738.98,0.00022054,3]
[348895514,1736863846845,-699.13,0.00022054,3]
[348895516,1736863846855,-500.0,0.00022054,3]
[348895518,1736863846866,-500.0,0.00022054,3]
[348895520,1736863846875,-500.0,0.00022054,3]
[348895522,1736863846886,-500.0,0.00022054,3]
[348895524,1736863846895,-623.79147526,0.00022062,2]
[348895526,1736863846905,-500.0,0.00022073,2]
[348895528,1736863846916,-500.0,0.00022073,2]
[348895529,1736863846926,-420.0583734,0.00022091,2]
[348895531,1736863846937,-151.0,0.000221,9]
[348895533,1736863846947,-151.0,0.000221,7]
[348895535,1736863846957,-151.0,0.000221,9]
[348895537,1736863846967,-151.0,0.000221,9]
[348895539,1736863846976,-957.42317623,0.00022141,2]
[348895541,1736863846986,-1200.0,0.00022161,2]
[348895543,1736863846996,-500.0,0.00022173,2]
[348895545,1736863847006,-151.2005681,0.00022173,2]
[348895547,1736863847016,-500.0,0.00022173,2]
[348895549,1736863847026,-500.48815866,0.00022173,2]
[348895550,1736863847036,-500.0,0.00022173,2]
[348895552,1736863847047,-267.38141334,0.00022173,2]
[348895554,1736863847056,-500.8169685,0.00022173,2]
[348895556,1736863847066,-501.98896243,0.00022173,2]
[348895558,1736863847076,-175.15888614,0.00022173,2]
[348895560,1736863847086,-500.0,0.00022173,2]
[348895562,1736863847096,-500.0,0.00022173,2]
[348895564,1736863847107,-500.0,0.00022191,3]
[348895566,1736863847117,-500.0,0.00022191,3]
[348895582,1736863847289,-500.0,0.00022191,3]
[348895584,1736863847301,-500.0,0.00022191,3]
[348895586,1736863847311,-500.0,0.00022191,3]
[348895588,1736863847325,-10661.45,0.00022191,3]
[348895590,1736863847335,-500.0,0.00022191,3]
[348895592,1736863847345,-500.0,0.00022191,3]
[348895594,1736863847355,-624.24,0.00022191,3]
[348895596,1736863847366,-500.0,0.00022191,3]
[348895598,1736863847376,-500.0,0.00022191,3]
[348895599,1736863847386,-500.0,0.00022191,3]
[348895601,1736863847398,-500.0,0.00022191,3]
[348895603,1736863847409,-500.0,0.00022191,3]
[348895605,1736863847419,-500.0,0.00022191,3]
[348895607,1736863847428,-500.0,0.00022191,3]
[348895609,1736863847439,-500.0,0.00022191,3]
[348895611,1736863847449,-500.0,0.00022191,3]
[348895613,1736863847459,-555.47,0.00022191,3]
[348895615,1736863847468,-500.0,0.00022191,3]
[348895616,1736863847478,-500.0,0.00022191,3]
[348895618,1736863847487,-500.0,0.00022191,3]
[348895620,1736863847497,-500.0,0.00022191,3]
[348895622,1736863847507,-500.0,0.00022191,3]
[348895624,1736863847516,-500.0,0.00022191,3]
[348895626,1736863847526,-500.0,0.00022191,3]
[348895628,1736863847536,-500.0,0.00022191,3]
[348895629,1736863847545,-648.6,0.00022191,3]
[348895631,1736863847554,-976.54,0.00022191,3]
[348895633,1736863847563,-500.0,0.00022191,3]
[348895635,1736863847573,-500.0,0.00022191,3]
[348895637,1736863847582,-800.75,0.00022191,3]
[348895639,1736863847592,-500.0,0.00022191,3]
[348895641,1736863847602,-500.0,0.00022191,3]
[348895643,1736863847612,-500.0,0.00022191,3]
[348895644,1736863847623,-602.56,0.00022191,3]
[348895646,1736863847632,-500.0,0.00022191,3]
[348895648,1736863847642,-500.0,0.00022191,3]
[348895650,1736863847652,-500.0,0.00022191,3]
[348895652,1736863847661,-666.37,0.00022191,3]
[348895653,1736863847671,-1167.65,0.00022191,3]
[348895655,1736863847680,-500.0,0.00022191,3]
[348895657,1736863847689,-905.35,0.00022191,3]
[348895659,1736863847699,-500.0,0.00022191,3]
[348895661,1736863847708,-500.0,0.00022191,3]
[348895663,1736863847718,-500.0,0.00022191,3]
[348895664,1736863847727,-1155.85,0.00022191,3]
[348895666,1736863847736,-500.0,0.00022191,3]
[348895668,1736863847746,-500.0,0.00022191,3]
[348895670,1736863847755,-862.62,0.00022191,3]
[348895672,1736863847765,-500.0,0.00022191,3]
[348895674,1736863847776,-798.75,0.00022191,3]
[348895676,1736863847786,-500.0,0.00022191,3]
[348895677,1736863847796,-1111.58,0.00022191,3]
[348895678,1736863847805,-500.0,0.00022191,3]
[348895679,1736863847816,-566.68701112,0.00022191,3]
[348895680,1736863847826,-500.0,0.00022191,3]
[348895681,1736863847837,-938.24,0.00022191,3]
[348895682,1736863847847,-500.0,0.00022191,3]
[348895683,1736863847857,-500.0,0.00022191,3]
[348895684,1736863847867,-501.06,0.00022191,3]
[348895685,1736863847877,-500.0,0.00022191,3]
[348895686,1736863847887,-500.0,0.00022191,3]
[348895687,1736863847897,-500.0,0.00022191,3]
[348895688,1736863847907,-500.0,0.00022191,3]
[348895689,1736863847917,-500.0,0.00022191,3]
[348895690,1736863847927,-683.74,0.00022191,3]
[348895691,1736863847936,-612.28,0.00022191,3]
[348895692,1736863847946,-500.0,0.00022191,3]
[348895693,1736863847956,-500.0,0.00022191,3]
[348895694,1736863847966,-500.0,0.00022191,3]
[348895695,1736863847976,-639.85,0.00022191,3]
[348895696,1736863847986,-849.75,0.00022191,3]
[348895697,1736863847995,-848.14,0.00022191,3]
[348895698,1736863848006,-646.88,0.00022191,3]
[348895699,1736863848016,-500.0,0.00022191,3]
[348895700,1736863848026,-500.0,0.00022191,3]
[348895701,1736863848036,-150.99747973,0.00022191,3]
[348895702,1736863848051,-500.0,0.00022191,3]
[348895703,1736863848062,-500.0,0.00022191,3]
[348895704,1736863848074,-765.36,0.00022191,3]
[348895705,1736863848090,-888.92,0.00022191,3]
[348895706,1736863848100,-500.0,0.00022191,3]
[348895707,1736863848110,-500.0,0.00022191,3]
[348895708,1736863848120,-2567.75,0.00022191,3]
[348895709,1736863848130,-500.0,0.00022191,3]
[348895710,1736863848141,-500.0,0.00022191,3]
[348895712,1736863848151,-500.0,0.00022191,3]
[348895713,1736863848161,-500.0,0.00022191,3]
[348895715,1736863848173,-500.0,0.00022191,3]
[348895717,1736863848183,-500.0,0.00022191,3]
[348895719,1736863848193,-500.0,0.00022191,3]
[348895721,1736863848203,-629.41,0.00022191,3]
[348895724,1736863848214,-205.08074487,0.00022191,3]
[348895726,1736863848224,-500.0,0.00022191,3]
[348895728,1736863848235,-500.0,0.00022191,3]
[348895730,1736863848246,-1413.47,0.00022191,3]
[348895732,1736863848257,-500.0,0.00022191,3]
[348895734,1736863848267,-584.19,0.00022191,3]
[348895736,1736863848278,-500.0,0.00022191,3]
[348895738,1736863848288,-1126.87,0.00022191,3]
[348895740,1736863848300,-500.0,0.00022191,3]
[348895742,1736863848311,-500.0,0.00022191,3]
[348895744,1736863848324,-505.27,0.00022191,3]
[348895746,1736863848333,-500.0,0.00022191,3]
[348895748,1736863848343,-473.87894776,0.00022191,3]
[348895750,1736863848353,-616.16,0.00022191,3]
[348895752,1736863848363,-1118.88,0.00022191,3]
[348895754,1736863848374,-783.08,0.00022191,3]
[348895756,1736863848384,-500.0,0.00022191,3]
[348895758,1736863848393,-500.0,0.00022191,3]
[348895760,1736863848404,-605.0,0.00022191,3]
[348895763,1736863848414,-1009.28,0.00022191,3]
[348895765,1736863848423,-500.0,0.00022191,3]
[348895767,1736863848433,-6485.76,0.00022191,3]
[348895769,1736863848443,-500.0,0.00022191,3]
[348895771,1736863848453,-1690.57,0.00022191,3]
[348895773,1736863848463,-740.18,0.00022191,3]
[348895775,1736863848473,-500.0,0.00022191,3]
[348895777,1736863848483,-500.0,0.00022191,3]
[348895778,1736863848493,-534.13234844,0.00022191,3]
[348895780,1736863848503,-500.0,0.00022191,3]
[348895782,1736863848514,-512.12,0.00022191,3]
[348895784,1736863848523,-500.0,0.00022191,3]
[348895786,1736863848533,-1010.0,0.00022191,3]
[348895788,1736863848544,-500.0,0.00022191,3]
[348895790,1736863848554,-500.0,0.00022191,3]
[348895792,1736863848563,-500.0,0.00022191,3]
[348895794,1736863848573,-1299.63,0.00022191,3]
[348895796,1736863848583,-500.0,0.00022191,3]
[348895798,1736863848593,-3768.06,0.00022191,3]
[348895800,1736863848603,-500.0,0.00022191,3]
[348895802,1736863848612,-500.0,0.00022191,3]